Cogmind - Beta 17.1 @@@ ROGUE MODE // 2026.09.12 @ 22:08:59 Player: Scuttle Result: Destroyed by G-47 Trooper with Particle Gun Performance ------------- Evolutions (0) 0 Regions Visited (2) 400 Robots Destroyed (28) 140 Value Destroyed (690) 690 Prototype IDs (0) 0 Alien Tech Used (0) 0 Bonus (0) 0 TOTAL SCORE: 1230 Bonus ------- None Cogmind --------- Core Integrity 0/250 Matter 275/300 Energy 50/100 System Corruption 0% Temperature Cool (32) Movement Rolling (110) Ox2 Location -10/Mines Parts ------- > --- POWER (1) -------- (None) > --- PROPULSION (2) --- Wheel > --- UTILITY (2) ------ Improved Heat Sink Large Storage Unit > --- WEAPON (2) ------- Beam Rifle Beam Rifle > --- INVENTORY (15) --- Light Nuclear Core Wheel Compact Wheel Disposable Heat Sink High-capacity Matter Pod (200) Light Armor Plating Beam Rifle Particle Gun Particle Gun Particle Gun Particle Gun Assault Rifle Grenade Launcher Peak State ------------ > --- POWER ------------ Light Nuclear Core > --- PROPULSION ------- Light Treads Wheel > --- UTILITY ---------- Improved Heat Sink Large Storage Unit > --- WEAPON ----------- Beam Rifle Beam Rifle > --- INVENTORY -------- Light Nuclear Core Wheel Disposable Heat Sink High-capacity Matter Pod Light Armor Plating Beam Rifle Beam Rifle Particle Gun Particle Gun Particle Gun Particle Gun Assault Rifle Grenade Launcher [Rating: 15] Favorites ----------- Power Ion Engine Engine Ion Engine Power Core Light Nuclear Core Propulsion Light Treads Treads Light Treads Wheel Wheel Utility Large Storage Unit Device Improved Heat Sink Storage Large Storage Unit Protection Light Armor Plating Weapon Small Laser Energy Gun Small Laser Launcher Grenade Launcher Build | -11 -10 -10 ------- Run | Yrd Mat Min Slots Evolved . | . . . Power . | . . . Propulsion . | . . . Utility . | . . . Weapon . | . . . Parts Attached 22 | 5 12 5 Power 3 | 1 1 1 Engine 2 | 1 1 . Core 1 | . . 1 Reactor . | . . . Propulsion 4 | 2 . 2 Treads 2 | 2 . . Leg . | . . . Wheel 2 | . . 2 Hover . | . . . Flight . | . . . Utility 6 | . 5 1 Device 2 | . 1 1 Storage 2 | . 2 . Processor . | . . . Hackware . | . . . Protection 2 | . 2 . Artifact . | . . . Weapon 9 | 2 6 1 Energy Gun 8 | 2 5 1 Energy Cannon . | . . . Ballistic Gun . | . . . Ballistic Cannon . | . . . Launcher 1 | . 1 . Special Weapon . | . . . Impact Weapon . | . . . Slashing Weapon . | . . . Piercing Weapon . | . . . Special Melee Weapon . | . . . Unidentified Prototypes . | . . . Parts Lost 5 | . 1 4 Power 1 | . . 1 Propulsion 2 | . . 2 Utility 1 | . 1 . Weapon 1 | . . 1 Highest Loss Streak 3 | . 1 3 To Critical Strikes . | . . . Average Backups 10 | . 10 13 Power 1 | . 1 1 Propulsion . | . . 1 Utility 1 | . 1 3 Weapon 6 | . 6 8 Tool/Special . | . . . Unused Backups 17 | . 7 10 Power 1 | . . 1 Propulsion 1 | . . 1 Utility 3 | . 1 2 Weapon 12 | . 6 6 Tool/Special . | . . . Average Slot Usage (%) 97 | . 98 97 Engine 11 | . 14 1 Core 2 | . . 12 Treads 23 | . 28 6 Wheel 4 | . . 19 Device 5 | . 3 14 Storage 13 | . 13 14 Protection 7 | . 9 . Energy Gun 27 | . 27 27 Peak Build Rating 15 | 5 13 15 Average Rating 9 | 4 8 14 On Entrance 6 | . 5 13 Avg Prop Armor Cover (%) 13 | . . 13 Naked Turns . | . . . Heaviest Build 34 | 7 34 32 Greatest Support 40 | 40 40 26 Greatest Overweight (x) 3 | . . 3 Average Overweight (x) . | . . 1 Largest Inventory Capacity 15 | 5 15 15 Average Capacity 14 | 5 14 15 Most Carried 15 | 2 15 15 Average Carried 10 | 1 10 13 Final Capacity 15 | 5 15 15 Final Carried 14 | 2 14 13 Class Distribution -------------------- 100% | Mutant Dominant Class ---------------- Mutant | -10/Materials Mutant | -10/Mines Resources | -11 -10 -10 ----------- Run | Yrd Mat Min Matter Collected 666 | 73 433 160 Remotely . | . . . Salvage Created 948 | . 559 389 Parts 41 | . 27 14 Haulers Intercepted 1 | . 1 . Recyclers Shooed 3 | . . 3 Parts Field Recycled . | . . . Retrieved Matter . | . . . Parts Self-Destructed . | . . . Prevented . | . . . Parts Restored . | . . . Kills | -11 -10 -10 ------- Run | Yrd Mat Min Combat Hostiles Destroyed 19 | . 14 5 Guns 14 | . 10 4 AOE 4 | . 4 . Classes Destroyed 7 | . 5 2 Worker 3 | . 3 . Builder 1 | . . 1 Hauler 1 | . 1 . Recycler 2 | . . 2 Watcher 2 | . 2 . Swarmer 3 | . 3 . Grunt 16 | . 11 5 Best Kill Streak 5 | . 5 2 Combat Bots Only 5 | . 5 2 Max Kills in Single Turn 2 | . 2 1 Gunslinging . | . . . Exploded 2 | . 2 . Melee . | . . . Uniques/NPCs Destroyed . | . . . Combat | -11 -10 -10 -------- Run | Yrd Mat Min Hostile Shots Fired 117 | . 71 46 Missed 29 | . 19 10 Hits 88 | . 52 36 Projectile 88 | . 52 36 Critical Strikes 1 | . . 1 Damage Taken 1164 | . 657 507 Core 261 | . 109 152 Absorbed by Shields . | . . . Core Remaining (%) 100 | 100 . . Volleys Fired 82 | . 46 36 Largest 2 | . 2 2 Hottest 112 | . 112 112 Shots Fired 153 | . 86 67 Gun 146 | . 80 66 Cannon . | . . . Launcher 7 | . 6 1 Special . | . . . Kinetic . | . . . Thermal 146 | . 80 66 Explosive 7 | . 6 1 Electromagnetic . | . . . Robot Hit Streak 13 | . 10 13 Robot Miss Streak 5 | . 5 2 Penetration Max . | . . . Secondary Targets 2 | . 1 1 Max Gunslinging Chain 1 | . 1 1 Shots Hit Robots 108 | . 58 50 Core Hits 52 | . 35 17 Critical Kills . | . . . Critical Parts Destroyed . | . . . Critical Strikes 3 | . 1 2 Burn 3 | . 1 2 Melee Attacks . | . . . Impact . | . . . Slashing . | . . . Piercing . | . . . Sneak Attacks . | . . . Combat Hostiles . | . . . Follow-up Attacks . | . . . Damage Inflicted 1912 | . 1113 799 Guns 1354 | . 654 700 Cannons . | . . . Explosions 534 | . 435 99 Melee . | . . . Ramming 24 | . 24 . Kinetic . | . . . Thermal 1354 | . 654 700 Explosive 534 | . 435 99 Electromagnetic . | . . . Impact . | . . . Slashing . | . . . Piercing . | . . . Highest Corruption . | . . . Average Corruption . | . . . Corruption Purged . | . . . Corruption Blocked . | . . . Overload Shots . | . . . Overflow Damage . | . . . Projectiles . | . . . Explosions . | . . . Melee . | . . . Knockbacks . | . . . Impact . | . . . Kinetic . | . . . Secondary . | . . . Self-Inflicted Damage 68 | . 56 12 Shots 5 | . 4 1 Rammed 7 | . 7 . Targets Rammed 7 | . 7 . Kicked . | . . . Crushed . | . . . Highest Temperature 321 | . 321 192 Average Temperature 81 | . 90 64 Received Heat Transfer 606 | . 312 294 Siege Activations . | . . . Martial Activations . | . . . Shielding Activations . | . . . Robots Disrupted . | . . . Combat Hostiles . | . . . Robots Corrupted . | . . . Combat Hostiles . | . . . Parts Fried . | . . . Impact Corruptions . | . . . Robots Melted 1 | . . 1 Combat Hostiles 1 | . . 1 Parts Melted 7 | . 2 5 Heat Transferred 3494 | . 1570 1924 Parts Sabotaged . | . . . Parts Stolen . | . . . Parts Stripped . | . . . Power Chain Reactions . | . . . Alert | -11 -10 -10 ------- Run | Yrd Mat Min Maximum Alert Level . | . . . Low Security (%) 100 | 100 100 100 Level 1 . | . . . Level 2 . | . . . Level 3 . | . . . Level 4 . | . . . Level 5 . | . . . High Security . | . . . Max Security . | . . . Peak Influence 126 | . 126 54 Initial 14 | . . 14 Average 42 | . 52 16 Influence Increases 581 | . 437 144 Destroy 0b10 Robot/C 380 | . 280 100 Destroy 0b10 Robot/NC 45 | . 30 15 Destroy Leader 96 | . 76 20 Disable Machine 15 | . 15 . Destroy Structure 15 | . 6 9 Lose Combat Pursuer 30 | . 30 . Influence Decreases 581 | . 400 181 Entered New Map 23 | . . 23 Time Decay 524 | . 390 134 Lost Part 34 | . 10 24 Squads Dispatched 5 | . 5 . Investigation 1 | . 1 . Extermination . | . . . Reinforcement 4 | . 4 . Assault . | . . . Garrison . | . . . Intercept . | . . . Searches Triggered . | . . . Construction Impeded . | . . . Haulers Reinforced . | . . . Active Scanning Responses . | . . . Cargo Convoy Interrupts . | . . . Stealth | -11 -10 -10 --------- Run | Yrd Mat Min Distress Signals 2 | . 2 . Communications Jammed . | . . . Distress Signals . | . . . Times Spotted 36 | . 30 6 Peak Tracking Total 6 | . 6 2 Tactical Retreats 2 | . 2 . Traps | -11 -10 -10 ------- Run | Yrd Mat Min Traps Triggered 1 | . 1 . Indirectly . | . . . Trap Hack Attempts . | . . . Triggered . | . . . Disarmed . | . . . Reprogrammed . | . . . Reused . | . . . Traps Extracted . | . . . Installed . | . . . Triggered . | . . . Machines | -11 -10 -10 ---------- Run | Yrd Mat Min Machines Disabled 1 | . 1 . Max in Single Turn 1 | . 1 . Machines Repaired . | . . . Machines Dismantled . | . . . Machines Sabotaged . | . . . Overloaded Fab Kills . | . . . Hacking | -11 -10 -10 --------- Run | Yrd Mat Min Machines Accessed 3 | . 3 . Terminals 3 | . 3 . Fabricators . | . . . Repair Stations . | . . . Recycling Units . | . . . Scanalyzers . | . . . Garrison Access . | . . . Total Hacks 7 | . 7 . Successful 3 | . 3 . Failed 4 | . 4 . Catastrophic 1 | . 1 . Database Lockouts . | . . . Manual 7 | . 7 . Terminals 7 | . 7 . Fabricators . | . . . Repair Stations . | . . . Recycling Units . | . . . Scanalyzers . | . . . Garrison Access . | . . . Terminal Hacks 1 | . 1 . Robot Analysis 1 | . 1 . Fabricator Hacks . | . . . Repair Station Hacks . | . . . Recycling Unit Hacks . | . . . Scanalyzer . | . . . Garrison Access Hacks . | . . . Unauthorized Hacks 2 | . 2 . Terminals 2 | . 2 . Botnet 2 | . 2 . Fabricators . | . . . Repair Stations . | . . . Recycling Units . | . . . Scanalyzers . | . . . Garrison Access . | . . . Data Cores Recovered . | . . . Used . | . . . Hacking Detections 3 | . 3 . Full Trace Events . | . . . Feedback Events . | . . . Feedback Blocked . | . . . Robot Schematics Acquired . | . . . Robots Built . | . . . Authchips . | . . . Time . | . . . Total Robot Build Rating . | . . . Part Schematics Acquired . | . . . Parts Built . | . . . Authchips . | . . . Time . | . . . Total Part Build Rating . | . . . Part Studies Acquired . | . . . Parts Repaired . | . . . Time . | . . . Parts Recycled . | . . . Recycled Matter . | . . . Retrieved Matter . | . . . Retrieved Components . | . . . Parts Scanalyzed . | . . . Part Schematics Acquired . | . . . Parts Damaged . | . . . Bothacking | -11 -10 -10 ------------ Run | Yrd Mat Min Used RIF Installer . | . . . Robots Hacked . | . . . Non-combat . | . . . Combat . | . . . Robot Hacks Applied . | . . . Relay Couplers Released . | . . . Fabnet Peak Effective % . | . . . Robots Rewired . | . . . Allies Hacked . | . . . Hacks Repelled . | . . . Allies | -11 -10 -10 -------- Run | Yrd Mat Min Total Allies . | . . . Largest Group . | . . . Highest-Rated Group . | . . . Highest-Rated Ally . | . . . Total Orders . | . . . Ally Attacks . | . . . Total Damage . | . . . Kills . | . . . Allies Corrupted . | . . . Allies Melted . | . . . Intel | -11 -10 -10 ------- Run | Yrd Mat Min Active Infowar (turns) . | . . . Robot Analysis Total 1 | . 1 . Derelict Logs Recovered 1 | . . 1 Drone Launches . | . . . Drone Recoveries . | . . . Exploration | -11 -10 -10 ------------- Run | Yrd Mat Min Turns Passed 1467 | 73 1086 308 Spaces Moved 720 | 43 521 156 Core 4 | 4 . . Treads 565 | 39 521 5 Legs . | . . . Wheels 151 | . . 151 Hover . | . . . Flight . | . . . Fastest Speed 50 | 50 160 105 Average Speed 149 | 149 160 115 Slowest Speed 240 | 160 160 240 Overloaded Moves . | . . . Propulsion Burnouts . | . . . Robots Hopped . | . . . Potential Cave-ins . | . . . Cave-ins Triggered . | . . . Exploration Rate (%) 44 | 3 88 43 Regions Visited 2 Branch Regions 1 Pre-discovered Areas . | . . . Known Exits Taken . | . . . Unknown Exits Taken 2 | 1 1 . Scrap Searched 1 | . . 1 Spaces Dug . | . . . Terrain Destroyed 15 | . 6 9 Melee . | . . . Projectile . | . . . AOE 15 | . 6 9 Terrain Rammed . | . . . Walls Destroyed . | . . . Machines Disabled . | . . . Actions | -11 -10 -10 --------- Run | Yrd Mat Min Total 949 | 49 686 214 Wait 76 | . 63 13 Move 718 | 42 520 156 Hop . | . . . Pick Up 24 | 2 21 1 Fast Attach 7 | 5 2 . Attach 3 | . 1 2 Detach . | . . . Swap 17 | . 12 5 Drop 15 | . 14 1 Fire 82 | . 46 36 Melee . | . . . Ram . | . . . Kick . | . . . Crush 7 | . 7 . Escape Stasis . | . . . Rewire . | . . . Trap . | . . . Miscellaneous . | . . . Route ------- -11/Scrapyard -10/Materials (discovered 4 exits: [*Mat x2] / [*Min] / [*Sub]) -10/Mines (discovered 1 exit: [*Mat]) History --------- Turn | Location | Event 3 | -11/Scrapyard | Discovered new exit (range 15) 74 | -11/Scrapyard | Entered Materials 306 | -10/Materials | Build established: Mutant 356 | -10/Materials | Discovered new exit (range 16) 498 | -10/Materials | Discovered new exit (range 12) 650 | -10/Materials | Discovered new exit (range 15) 930 | -10/Materials | Discovered new exit (range 7) 1160 | -10/Materials | Entered Mines 1171 | -10/Mines | Core integrity fell below 50% 1289 | -10/Mines | Discovered new exit (range 9) 1390 | -10/Mines | Learned Materials stockpile data 1438 | -10/Mines | Core integrity fell below 20% 1468 | -10/Mines | Destroyed by G-47 Trooper with Particle Gun Last Messages --------------- 01326_ Aluminum Leg melted. 01326_ G-34 Mercenary destroyed. 01327_ Acquired 10 matter. 01333_ Dropped Imp. Heat Sink. 01390_ Acquired derelict log, extracted data. Data stored: Materials stockpile data. 01404_ Searching scrap... 01404_ Found Hcp. Matter Pod. 01404_ Found Huge Storage Unit. 01404_ Found Core Shielding. 01404_ Found Med. Matter Pod. 01404_ Found 31 Matter. 01405_ Acquired 10 matter. 01435_ U-05 Engineer destroyed. 01453_ Beam Rifle destroyed. 01455_ Lgt. Nuclear Core destroyed. 01458_ G-34 Mercenary critical meltdown. 01458_ Aluminum Leg melted. 01466_ Com. Wheel destroyed. 01468_ Critical hit (Burn: +37). Map ----- +----------------------------------------------------+ | | | | | | | | | | | | | | | | | | | ??????????????????????????????????????????? | | ??????????????????????????????????????????? | | ??????????????????????????????????????????? | | ??????????????????????????????????????????? | | ??????????????????????????????????????????? | | ????????????????????????????####??????????? | | ???????????????????????????## ##?????????? | | ????????????????????###????# ##????????? | | ????????????##?????## ##???# ##???????? | | ????????????# ????# ##??# ####????? | | ???????????###! ???# #### ##???? | | ???????????# =%!##?# ## """ #???? | | ???????????# =* ## """ ##??? | | ??????????## """ #### | | ??????????# # | | ?????# ##% g | | ??????# #??#@ ### | | ??????#### ?????# ## ##?## | | ?????????????????# #####???###### | | ?????????????????# #????????????## | | ????????????????# #????????????# | | ??????????????? #????????????##!! | | ?????????????? ##?????????????#%! | | ?????????????# #####?????????###### ! | | ????????????? ##?????????????# | | ???????????? #??????????????# | | ????????????? ##??????????????# ##### | | ?????????????? ##????????######### #???? | | ?????????????? #??????????# #???? | | ??????????????? ???????????# #########???? | | ???????????????????????????# #???????????? | | ?????????????????????????### #???????????? | | ????????????????????????## ##?????#####? | | ????????????????????????# ####### ## | | ????????????????????????# # | | ????????????????????????## ## | | ?????????????????????????##### """ | | ?????????????????????????????## """ | | ??????????????????????????????## """ | | ???????????????????????????????## | | ????????????????????????????????######## | +----------------------------------------------------+ Best States ------------- Heat Dissipation 39 Energy Generation 14 Energy Capacity 250 Matter Stores 300 Matter Capacity 300 Sight Range 16 Terrain Scan Density 10 Armor Coverage 150 Evasion (%) 40 Recoil Reduction 2 Item Schematics ----------------- None Robot Schematics ------------------ None Fabricated ------------ Nothing Repaired ---------- Nothing Studied --------- None Alien Tech Used ----------------- None Achievements -------------- None Challenges ------------ None Game ------ Seed TeleporterCannonSubcomponent Manual? 0 Play Time 00:10:17 Cumulative 669.3 hours Start 2026.09.12 @ 22:00:34 End 2026.09.12 @ 22:08:59 Sessions 1 Manual Loads 0 Difficulty Rogue Special Mode None Game No. 298 Rogue 298 Adventurer 0 Explorer 0 Win Type - Total 42 Types 20/5/6/2/1/2/2/2/1/1 Lore% 93 Gallery% 83 Achievement% 80 Wizard Run 0 Options --------- Layout 0 ASCII 0 Keyboard 1 Movement Arrows Keybinds 0 Fullscreen 2 Font 18/Terminus Map View 76x50 Zoom Use 0% Tactical HUD 1 Map Filters BRIGHTNESS(90)|SATURATION(90) Filters NONE Steam 1 RUN: 8c259892-2788-422d-bf2f-d41437569630